[Event "Austria Championship Blitz 2024"]
[Site "Innsbruck"]
[Date "2024.06.01"]
[Round "6.14"]
[White "Cafasso, Elia"]
[Black "Khalakhan, Jurij"]
[Result "1-0"]
[ECO "B00"]
[WhiteElo "2178"]
[BlackElo "2175"]
[Annotator "RC"]
[PlyCount "80"]
[EventDate "2024.06.01"]
[EventType "swiss"]
[EventCountry "AUT"]
[SourceTitle "playchess.com"]
[Source "ChessBase"]
[SourceQuality "1"]
[TimeControl "180+2"]

1. e4 {[%emt 0:00:01]} b6 {[%emt 0:00:00]} 2. d4 {[%emt 0:00:01]} Bb7 {[%emt 0:00:01]} 3. Nc3 {[%emt 0:00:02]} e6 {[%emt 0:00:00]} 4. Nf3 {[%emt 0:00:04]} Bb4 {[%emt 0:00:02]} 5. Bd3 {[%emt 0:00:01]} Nf6 {[%emt 0:00:01]} 6. Qe2 {[%emt 0:00:01]} d5 {[%emt 0:00:01]} 7. e5 {[%emt 0:00:08]} Ne4 {[%emt 0:00:01]} 8. Bd2 {[%emt 0:00:03]} Nxd2 {[%emt 0:00:01]} 9. Nxd2 {[%emt 0:00:02]} c5 {[%emt 0:00:01]} 10. Qg4 {[%emt 0:00:35]} O-O {[%emt 0:00:28]} 11. a3 {[%emt 0:00:06]} Ba5 {[%emt 0:00:17]} 12. Nf3 {[%emt 0:00:09]} g6 {[%emt 0:00:43]} 13. h4 {[%emt 0:00:15]} cxd4 {[%emt 0:00:06]} 14. Nxd4 {[%emt 0:00:14]} Bxc3+ {[%emt 0:00:15]} 15. bxc3 {[%emt 0:00:01]} Nd7 {[%emt 0:00:01]} 16. Qf4 {[%emt 0:00:17]} Qc7 {[%emt 0:00:08]} 17. Nf3 {[%emt 0:00:16]} f6 {[%emt 0:00:24]} 18. Qg4 {[%emt 0:00:11]} Qxc3+ {[%emt 0:00:02]} 19. Ke2 {[%emt 0:00:01]} Nxe5 {[%emt 0:00:05]} 20. Qxe6+ {[%emt 0:00:04]} Kg7 {[%emt 0:00:02]} 21. Nxe5 {[%emt 0:00:08]} Qxe5+ {[%emt 0:00:18]} 22. Qxe5 fxe5 {[%emt 0:00:01]} 23. f3 {[%emt 0:00:03]} e4 {[%emt 0:00:12]} 24. fxe4 {[%emt 0:00:02]} dxe4 {[%emt 0:00:01]} 25. Bc4 {[%emt 0:00:04]} Rac8 {[%emt 0:00:07]} 26. Bb3 {[%emt 0:00:02]} Rc3 {[%emt 0:00:02]} 27. Rad1 {[%emt 0:00:08]} Ba6+ {[%emt 0:00:06]} 28. Kd2 {[%emt 0:00:09]} Rg3 {[%emt 0:00:03]} 29. Kc1 {[%emt 0:00:09]} Rxg2 {[%emt 0:00:01]} 30. Rd7+ {[%emt 0:00:01]} Kh6 {[%emt 0:00:01]} 31. h5 {[%emt 0:00:06]} Rf1+ {[%emt 0:00:06]} 32. Rxf1 {[%emt 0:00:02]} Bxf1 {[%emt 0:00:01]} 33. hxg6 {[%emt 0:00:02]} hxg6 {[%emt 0:00:01]} 34. Bd5 {[%emt 0:00:04]} Rg4 {[%emt 0:00:09]} 35. Kd2 {[%emt 0:00:40]} Bg2 {[%emt 0:00:06]} 36. Ke2 {[%emt 0:00:00]} Bf3+ {[%emt 0:00:02]} 37. Ke3 {[%emt 0:00:00]} Rg2 {[%emt 0:00:04]} 38. c4 {[%emt 0:00:00]} Re2+ {[%emt 0:00:02]} 39. Kf4 {[%emt 0:00:00]} Rf2 {[%emt 0:00:14]} 40. Bxe4 {[%emt 0:00:00]} Bxe4+ {[%emt 0:00:06]} 1-0

[Event "Austria Championship Blitz 2024"]
[Site "Innsbruck"]
[Date "2024.06.01"]
[Round "6.15"]
[White "Schranzhofer, Marco"]
[Black "Mira, Helene"]
[Result "0-1"]
[ECO "B07"]
[WhiteElo "1908"]
[BlackElo "2047"]
[Annotator "NA RC"]
[PlyCount "64"]
[EventDate "2024.06.01"]
[EventType "swiss"]
[EventCountry "AUT"]
[SourceTitle "playchess.com"]
[Source "ChessBase"]
[SourceQuality "1"]
[TimeControl "180+2"]

1. e4 {[%emt 0:00:01]} d6 {[%emt 0:00:01]} 2. c3 {[%emt 0:00:01]} e5 {[%emt 0:00:01]} 3. d4 {[%emt 0:00:02]} Nc6 {[%emt 0:00:02]} 4. Bb5 {[%emt 0:00:01]} a6 {[%emt 0:00:01]} 5. Bxc6+ {[%emt 0:00:02]} bxc6 {[%emt 0:00:01]} 6. dxe5 {[%emt 0:00:01]} dxe5 {[%emt 0:00:02]} 7. Qxd8+ {[%emt 0:00:01]} Kxd8 {[%emt 0:03:08]} 8. Nf3 {[%emt 0:00:18]} f6 {[%emt 0:00:00]} 9. Be3 {[%emt 0:00:03]} Be6 {[%emt 0:00:00]} 10. b3 {[%emt 0:00:19]} a5 {[%emt 0:00:00]} 11. Nbd2 {[%emt 0:00:03]} a4 {[%emt 0:00:00]} 12. O-O {[%emt 0:00:03]} Ba3 {[%emt 0:00:00]} 13. Rab1 {[%emt 0:00:04]} Ne7 {[%emt 0:00:00]} 14. Rbd1 {[%emt 0:00:06]} Kc8 {[%emt 0:00:00]} 15. Nb1 {[%emt 0:01:27]} axb3 {[%emt 0:00:00]} 16. Nxa3 {[%emt 0:00:10]} Rxa3 {[%emt 0:00:00]} 17. Bc5 {[%emt 0:00:03]} Rxa2 {[%emt 0:00:00]} 18. Bxe7 {[%emt 0:00:01]} b2 {[%emt 0:00:00]} 19. Rb1 {[%emt 0:00:11]} Bc4 {[%emt 0:00:00]} 20. Rfd1 {[%emt 0:00:02]} Re8 {[%emt 0:00:00]} 21. Bb4 {[%emt 0:00:02]} Rd8 {[%emt 0:00:00]} 22. Re1 {[%emt 0:00:29]} Bd3 {[%emt 0:00:00]} 23. Rxb2 {[%emt 0:00:01]} Rxb2 {[%emt 0:00:00]} 24. h3 {[%emt 0:00:07]} Kb7 {[%emt 0:00:00]} 25. Rd1 {[%emt 0:00:09]} Rb1 {[%emt 0:00:00]} 26. Rxb1 {[%emt 0:00:01]} Bxb1 {[%emt 0:00:00]} 27. Kh2 {[%emt 0:00:01]} Bxe4 {[%emt 0:00:00]} 28. Nh4 {[%emt 0:00:00]} g5 {[%emt 0:00:00]} 29. f3 {[%emt 0:00:01]} Bd3 {[%emt 0:00:00]} 30. Be7 {[%emt 0:00:01]} Rd7 {[%emt 0:00:00]} 31. Bxf6 {[%emt 0:00:02]} gxh4 {[%emt 0:00:00]} 32. Bxe5 {[%emt 0:00:01]} Rd5 {[%emt 0:00:50]} 0-1

[Event "Austria Championship Blitz 2024"]
[Site "Innsbruck"]
[Date "2024.06.01"]
[Round "6.16"]
[White "Stadlinger, Lea"]
[Black "Kienboeck, Benjamin"]
[Result "0-1"]
[ECO "D00"]
[WhiteElo "1912"]
[BlackElo "2187"]
[Annotator "RC"]
[PlyCount "34"]
[EventDate "2024.06.01"]
[EventType "swiss"]
[EventCountry "AUT"]
[SourceTitle "playchess.com"]
[Source "ChessBase"]
[SourceQuality "1"]
[TimeControl "180+2"]

1. d4 {[%emt 0:00:01]} Nf6 {[%emt 0:00:01]} 2. Bf4 {[%emt 0:00:01]} d5 {[%emt 0:00:02]} 3. e3 {[%emt 0:00:02]} e6 {[%emt 0:00:01]} 4. Nc3 {[%emt 0:00:03]} a6 {[%emt 0:00:08]} 5. Bd3 {[%emt 0:00:09]} c5 {[%emt 0:00:01]} 6. dxc5 {[%emt 0:00:26]} Bxc5 {[%emt 0:00:01]} 7. g4 {[%emt 0:00:29]} Nc6 {[%emt 0:00:21]} 8. g5 {[%emt 0:00:23]} Nd7 {[%emt 0:00:01]} 9. h4 {[%emt 0:00:23]} b5 {[%emt 0:00:04]} 10. Bg3 {[%emt 0:00:14]} Bb7 {[%emt 0:00:07]} 11. Qg4 {[%emt 0:00:07]} Nce5 {[%emt 0:00:26]} 12. Qe2 {[%emt 0:00:24]} b4 {[%emt 0:00:16]} 13. Na4 {[%emt 0:00:09]} Ba7 {[%emt 0:00:02]} 14. f3 {[%emt 0:00:17]} Qc7 {[%emt 0:00:40]} 15. Nh3 {[%emt 0:00:12]} Nxd3+ {[%emt 0:00:03]} 16. Qxd3 {[%emt 0:00:04]} Qxg3+ {[%emt 0:00:02]} 17. Ke2 {[%emt 0:00:03]} Ne5 {[%emt 0:00:17]} 0-1

[Event "Austria Championship Blitz 2024"]
[Site "Innsbruck"]
[Date "2024.06.01"]
[Round "6.17"]
[White "Kummer, Helmut"]
[Black "Polterauer, Chiara"]
[Result "1/2-1/2"]
[ECO "D93"]
[WhiteElo "2212"]
[BlackElo "2136"]
[Annotator "RC"]
[PlyCount "91"]
[EventDate "2024.06.01"]
[EventType "swiss"]
[EventCountry "AUT"]
[SourceTitle "playchess.com"]
[Source "ChessBase"]
[SourceQuality "1"]
[TimeControl "180+2"]

1. d4 {[%emt 0:00:01]} Nf6 {[%emt 0:00:00]} 2. c4 {[%emt 0:00:01]} g6 {[%emt 0:00:01]} 3. Nc3 {[%emt 0:00:02]} d5 {[%emt 0:00:01]} 4. Bf4 {[%emt 0:00:01]} Bg7 {[%emt 0:00:01]} 5. e3 {[%emt 0:00:02]} O-O {[%emt 0:00:03]} 6. Nf3 {[%emt 0:00:05]} c6 {[%emt 0:00:10]} 7. h3 {[%emt 0:00:01]} Nbd7 {[%emt 0:00:08]} 8. Bd3 {[%emt 0:00:05]} Re8 {[%emt 0:00:15]} 9. Bh2 {[%emt 0:00:08]} dxc4 {[%emt 0:00:26]} 10. Bxc4 {[%emt 0:00:02]} c5 {[%emt 0:00:02]} 11. O-O {[%emt 0:00:14]} cxd4 {[%emt 0:00:04]} 12. Nxd4 {[%emt 0:00:01]} Nb6 {[%emt 0:00:08]} 13. Bb3 {[%emt 0:00:02]} e5 {[%emt 0:00:10]} 14. Ndb5 {[%emt 0:00:05]} Qe7 {[%emt 0:00:13]} 15. Qd6 {[%emt 0:00:15]} Nfd7 {[%emt 0:00:31]} 16. Rad1 {[%emt 0:00:11]} Qxd6 {[%emt 0:00:24]} 17. Nxd6 {[%emt 0:00:11]} Re7 {[%emt 0:00:00]} 18. a3 {[%emt 0:00:27]} Nc5 {[%emt 0:00:05]} 19. Ba2 {[%emt 0:00:01]} Be6 {[%emt 0:00:01]} 20. Bxe6 {[%emt 0:00:03]} Nxe6 {[%emt 0:00:05]} 21. Nd5 {[%emt 0:00:22]} Nxd5 {[%emt 0:00:06]} 22. Rxd5 {[%emt 0:00:01]} Nc7 {[%emt 0:00:01]} 23. Rdd1 {[%emt 0:00:02]} Ne8 {[%emt 0:00:07]} 24. Nxe8 {[%emt 0:00:17]} Raxe8 {[%emt 0:00:01]} 25. Rd5 {[%emt 0:00:01]} Rc7 {[%emt 0:00:14]} 26. Rfd1 {[%emt 0:00:04]} f6 {[%emt 0:00:03]} 27. Bg3 {[%emt 0:00:04]} Bf8 {[%emt 0:00:02]} 28. Bh4 {[%emt 0:00:04]} g5 {[%emt 0:00:04]} 29. Bg3 {[%emt 0:00:01]} Rec8 {[%emt 0:00:02]} 30. Rd7 {[%emt 0:00:05]} Bc5 {[%emt 0:00:14]} 31. h4 {[%emt 0:00:02]} h6 {[%emt 0:00:01]} 32. hxg5 {[%emt 0:00:01]} hxg5 {[%emt 0:00:01]} 33. Kf1 {[%emt 0:00:04]} Bb6 {[%emt 0:00:01]} 34. Ke2 {[%emt 0:00:04]} Rxd7 {[%emt 0:00:03]} 35. Rxd7 {[%emt 0:00:02]} Rc7 {[%emt 0:00:01]} 36. Rxc7 {[%emt 0:00:02]} Bxc7 {[%emt 0:00:01]} 37. e4 {[%emt 0:00:01]} Kf7 {[%emt 0:00:01]} 38. Kd3 {[%emt 0:00:01]} b5 {[%emt 0:00:01]} 39. b3 {[%emt 0:00:04]} Ke6 {[%emt 0:00:01]} 40. f3 {[%emt 0:00:01]} Bb6 {[%emt 0:00:01]} 41. Be1 {[%emt 0:00:02]} Kd6 {[%emt 0:00:04]} 42. Bb4+ {[%emt 0:00:03]} Ke6 {[%emt 0:00:02]} 43. g4 {[%emt 0:00:02]} a5 {[%emt 0:00:01]} 44. Bf8 {[%emt 0:00:04]} Kf7 {[%emt 0:00:03]} 45. Bd6 {[%emt 0:00:05]} Ke6 {[%emt 0:00:02]} 46. Bf8 {[%emt 0:00:57]} 1/2-1/2

[Event "Austria Championship Blitz 2024"]
[Site "Innsbruck"]
[Date "2024.06.01"]
[Round "6.18"]
[White "Guba, Viktor"]
[Black "Vrban, Damir"]
[Result "0-1"]
[ECO "C40"]
[WhiteElo "1891"]
[BlackElo "2151"]
[Annotator "RC"]
[PlyCount "66"]
[EventDate "2024.06.01"]
[EventType "swiss"]
[EventCountry "AUT"]
[SourceTitle "playchess.com"]
[Source "ChessBase"]
[SourceQuality "1"]
[TimeControl "180+2"]

1. e4 {[%emt 0:00:02]} e5 {[%emt 0:00:06]} 2. Nf3 {[%emt 0:00:01]} f5 {[%emt 0:00:04]} 3. Nxe5 {[%emt 0:00:25]} Qf6 {[%emt 0:00:02]} 4. d4 {[%emt 0:00:15]} Nc6 {[%emt 0:00:01]} 5. Nxc6 {[%emt 0:00:09]} dxc6 {[%emt 0:00:02]} 6. e5 {[%emt 0:00:14]} Qf7 {[%emt 0:00:02]} 7. Bd3 {[%emt 0:00:05]} Be6 {[%emt 0:00:04]} 8. O-O {[%emt 0:00:06]} O-O-O {[%emt 0:00:05]} 9. c3 {[%emt 0:00:05]} c5 {[%emt 0:00:06]} 10. Na3 {[%emt 0:00:15]} cxd4 {[%emt 0:01:18]} 11. Nb5 {[%emt 0:00:11]} dxc3 {[%emt 0:00:48]} 12. Nxc3 {[%emt 0:00:01]} Ne7 {[%emt 0:00:11]} 13. Qc2 {[%emt 0:00:08]} Nc6 {[%emt 0:00:05]} 14. Bf4 {[%emt 0:00:31]} Nb4 {[%emt 0:00:04]} 15. Qa4 {[%emt 0:00:14]} Nxd3 {[%emt 0:00:17]} 16. Qxa7 {[%emt 0:00:09]} Nxf4 {[%emt 0:00:04]} 17. Qa8+ {[%emt 0:00:09]} Kd7 {[%emt 0:00:01]} 18. Rad1+ {[%emt 0:00:01]} Nd5 {[%emt 0:00:00]} 19. Qxb7 {[%emt 0:00:04]} Ke8 {[%emt 0:00:03]} 20. Qc6+ {[%emt 0:00:07]} Qd7 {[%emt 0:00:00]} 21. Qb7 {[%emt 0:00:11]} c6 {[%emt 0:00:05]} 22. Qa6 {[%emt 0:00:08]} Be7 {[%emt 0:00:06]} 23. b4 {[%emt 0:00:06]} Qc8 {[%emt 0:00:05]} 24. Qxc8 {[%emt 0:00:05]} Rxc8 {[%emt 0:00:11]} 25. Nxd5 {[%emt 0:00:04]} Bxd5 {[%emt 0:00:00]} 26. a3 {[%emt 0:00:01]} Kf7 {[%emt 0:00:00]} 27. Rfe1 {[%emt 0:00:03]} Ke6 {[%emt 0:00:00]} 28. f4 {[%emt 0:00:01]} Ra8 {[%emt 0:00:00]} 29. Re3 {[%emt 0:00:01]} Ra4 {[%emt 0:00:00]} 30. Ra1 {[%emt 0:00:02]} Rha8 {[%emt 0:00:03]} 31. Rg3 {[%emt 0:00:02]} g6 {[%emt 0:00:01]} 32. Rh3 {[%emt 0:00:01]} h5 {[%emt 0:00:01]} 33. Rg3 {[%emt 0:00:01]} Kf7 {[%emt 0:00:01]} 0-1

[Event "Austria Championship Blitz 2024"]
[Site "Innsbruck"]
[Date "2024.06.01"]
[Round "6.19"]
[White "Horvath, Reka"]
[Black "Froewis, Annika"]
[Result "1-0"]
[ECO "A46"]
[WhiteElo "2009"]
[BlackElo "2075"]
[Annotator "NA RC"]
[PlyCount "118"]
[EventDate "2024.06.01"]
[EventType "swiss"]
[EventCountry "AUT"]
[SourceTitle "playchess.com"]
[Source "ChessBase"]
[SourceQuality "1"]
[TimeControl "180+2"]

1. Nf3 {[%emt 0:00:01]} d5 {[%emt 0:00:00]} 2. g3 {[%emt 0:00:01]} e6 {[%emt 0:00:01]} 3. Bg2 {[%emt 0:00:01]} Nf6 {[%emt 0:00:01]} 4. d4 {[%emt 0:00:02]} b5 {[%emt 0:00:01]} 5. O-O {[%emt 0:00:03]} Be7 {[%emt 0:00:03]} 6. a4 {[%emt 0:00:04]} b4 {[%emt 0:00:02]} 7. c3 {[%emt 0:00:02]} bxc3 {[%emt 0:00:05]} 8. Nxc3 {[%emt 0:00:01]} O-O {[%emt 0:00:22]} 9. Re1 {[%emt 0:00:07]} Bb7 {[%emt 0:00:04]} 10. Qb3 {[%emt 0:00:07]} Qc8 {[%emt 0:00:03]} 11. Bd2 {[%emt 0:00:14]} Nbd7 {[%emt 0:00:07]} 12. Rac1 {[%emt 0:00:01]} a6 {[%emt 0:00:20]} 13. a5 {[%emt 0:00:07]} Rb8 {[%emt 0:00:06]} 14. Qc2 {[%emt 0:00:02]} c5 {[%emt 0:00:07]} 15. Na4 {[%emt 0:00:27]} Ne4 {[%emt 0:00:25]} 16. Bf4 {[%emt 0:00:06]} Ra8 {[%emt 0:00:20]} 17. dxc5 {[%emt 0:00:16]} Nexc5 {[%emt 0:00:24]} 18. b4 {[%emt 0:00:40]} Ne4 {[%emt 0:00:15]} 19. Qb2 {[%emt 0:00:13]} Bc6 {[%emt 0:00:29]} 20. Nd4 {[%emt 0:00:07]} Bxa4 {[%emt 0:00:15]} 21. Rxc8 {[%emt 0:00:06]} Raxc8 {[%emt 0:00:01]} 22. Rc1 {[%emt 0:00:23]} e5 {[%emt 0:00:03]} 23. Nf5 {[%emt 0:00:07]} Rxc1+ {[%emt 0:00:04]} 24. Bxc1 {[%emt 0:00:02]} Bf6 {[%emt 0:00:00]} 25. Qa3 {[%emt 0:00:05]} Bb5 {[%emt 0:00:00]} 26. h4 {[%emt 0:00:04]} Bxe2 {[%emt 0:00:00]} 27. Bxe4 {[%emt 0:00:01]} dxe4 {[%emt 0:00:00]} 28. Qe3 {[%emt 0:00:08]} Bd3 {[%emt 0:00:00]} 29. Nd6 {[%emt 0:00:04]} Be7 {[%emt 0:00:00]} 30. Nxe4 {[%emt 0:00:02]} Bb5 {[%emt 0:00:00]} 31. Bd2 {[%emt 0:00:02]} Rc8 {[%emt 0:00:00]} 32. Ng5 {[%emt 0:00:04]} h6 {[%emt 0:00:02]} 33. Nf3 {[%emt 0:00:03]} Bd6 {[%emt 0:00:05]} 34. Qa7 {[%emt 0:00:05]} Rc7 {[%emt 0:00:04]} 35. Qa8+ {[%emt 0:00:03]} Kh7 {[%emt 0:00:01]} 36. Qe4+ {[%emt 0:00:02]} g6 {[%emt 0:00:00]} 37. h5 {[%emt 0:00:02]} f5 {[%emt 0:00:03]} 38. hxg6+ {[%emt 0:00:03]} Kxg6 {[%emt 0:00:01]} 39. Nh4+ {[%emt 0:00:01]} Kf7 {[%emt 0:00:04]} 40. Qxf5+ {[%emt 0:00:02]} Ke8 {[%emt 0:00:02]} 41. Qe6+ {[%emt 0:00:02]} Be7 {[%emt 0:00:02]} 42. Ng6 {[%emt 0:00:03]} Nf8 {[%emt 0:00:09]} 43. Nxf8 {[%emt 0:00:03]} Kxf8 {[%emt 0:00:00]} 44. Bxh6+ {[%emt 0:00:01]} Ke8 {[%emt 0:00:01]} 45. Qg8+ {[%emt 0:00:04]} Kd7 {[%emt 0:00:02]} 46. Qd5+ {[%emt 0:00:03]} Bd6 {[%emt 0:00:03]} 47. Bf8 {[%emt 0:00:03]} Rc1+ {[%emt 0:00:04]} 48. Kh2 {[%emt 0:00:01]} Rc6 {[%emt 0:00:04]} 49. Qf7+ {[%emt 0:00:03]} Kd8 {[%emt 0:00:04]} 50. Bxd6 {[%emt 0:00:03]} Rxd6 {[%emt 0:00:00]} 51. Qf8+ {[%emt 0:00:02]} Kd7 {[%emt 0:00:06]} 52. Qf7+ {[%emt 0:00:02]} Kc6 {[%emt 0:00:03]} 53. Qe8+ {[%emt 0:00:02]} Kd5 {[%emt 0:00:01]} 54. Qa8+ {[%emt 0:00:01]} Bc6 {[%emt 0:00:02]} 55. Qg8+ {[%emt 0:00:02]} Kd4 {[%emt 0:00:02]} 56. g4 {[%emt 0:00:02]} Rh6+ {[%emt 0:00:02]} 57. Kg3 {[%emt 0:00:01]} Rf6 {[%emt 0:00:02]} 58. Qd8+ {[%emt 0:00:02]} Ke4 {[%emt 0:00:03]} 59. Qxf6 {[%emt 0:00:01]} Kd5 {[%emt 0:00:02]} 1-0

[Event "Austria Championship Blitz 2024"]
[Site "Innsbruck"]
[Date "2024.06.01"]
[Round "6.20"]
[White "Kondrak, Christoph"]
[Black "Wurzer, Gerhard"]
[Result "1-0"]
[ECO "A40"]
[WhiteElo "1972"]
[BlackElo "1894"]
[Annotator "NA RC"]
[PlyCount "63"]
[EventDate "2024.06.01"]
[EventType "swiss"]
[EventCountry "AUT"]
[SourceTitle "playchess.com"]
[Source "ChessBase"]
[SourceQuality "1"]
[TimeControl "180+2"]

1. d4 {[%emt 0:00:01]} c6 {[%emt 0:00:00]} 2. Nf3 {[%emt 0:03:05]} Qc7 3. c4 {[%emt 0:00:00]} d6 {[%emt 0:00:02]} 4. Bf4 {[%emt 0:00:00]} Nd7 {[%emt 0:00:01]} 5. h3 {[%emt 0:00:00]} e5 {[%emt 0:00:01]} 6. Bh2 {[%emt 0:00:00]} Ngf6 {[%emt 0:00:01]} 7. e3 {[%emt 0:00:00]} Be7 {[%emt 0:00:02]} 8. Nc3 {[%emt 0:00:00]} O-O {[%emt 0:00:02]} 9. Be2 {[%emt 0:00:00]} Ne8 {[%emt 0:00:07]} 10. O-O {[%emt 0:00:00]} Bf6 {[%emt 0:00:14]} 11. Rc1 {[%emt 0:00:00]} Nb8 {[%emt 0:00:11]} 12. b4 {[%emt 0:00:00]} Qe7 {[%emt 0:00:04]} 13. c5 {[%emt 0:00:00]} exd4 {[%emt 0:00:11]} 14. exd4 {[%emt 0:00:00]} d5 {[%emt 0:00:08]} 15. Re1 {[%emt 0:00:00]} g6 {[%emt 0:00:16]} 16. a4 {[%emt 0:00:00]} Qd8 {[%emt 0:00:31]} 17. b5 {[%emt 0:00:00]} Nd7 {[%emt 0:00:03]} 18. Qb3 {[%emt 0:00:00]} Ng7 {[%emt 0:00:07]} 19. a5 {[%emt 0:00:00]} Re8 {[%emt 0:00:06]} 20. a6 {[%emt 0:00:00]} bxa6 {[%emt 0:00:07]} 21. bxc6 {[%emt 0:00:00]} Nf8 {[%emt 0:00:09]} 22. Qxd5 {[%emt 0:00:00]} Be6 {[%emt 0:00:09]} 23. Qxd8 {[%emt 0:00:00]} Rexd8 {[%emt 0:00:02]} 24. c7 {[%emt 0:00:00]} Rxd4 {[%emt 0:00:10]} 25. Nxd4 {[%emt 0:00:00]} Bxd4 {[%emt 0:00:01]} 26. Bxa6 {[%emt 0:00:00]} Bxc5 {[%emt 0:00:37]} 27. Nb5 {[%emt 0:00:00]} Bb6 {[%emt 0:00:03]} 28. c8=Q {[%emt 0:00:00]} Bxc8 {[%emt 0:00:00]} 29. Bxc8 {[%emt 0:00:00]} Nfe6 {[%emt 0:00:35]} 30. Bb7 {[%emt 0:00:00]} Re8 {[%emt 0:00:00]} 31. Rc8 {[%emt 0:00:00]} Rxc8 {[%emt 0:00:00]} 32. Bxc8 {[%emt 0:00:00]} 1-0

[Event "Austria Championship Blitz 2024"]
[Site "Innsbruck"]
[Date "2024.06.01"]
[Round "6.21"]
[White "Schnegg, Anna-Lena"]
[Black "Karall, Lorenz"]
[Result "1-0"]
[ECO "E72"]
[WhiteElo "2124"]
[BlackElo "1869"]
[Annotator "RC"]
[PlyCount "163"]
[EventDate "2024.06.01"]
[EventType "swiss"]
[EventCountry "AUT"]
[SourceTitle "playchess.com"]
[Source "ChessBase"]
[SourceQuality "1"]
[TimeControl "180+2"]

1. c4 {[%emt 0:00:01]} Nf6 {[%emt 0:00:02]} 2. Nc3 {[%emt 0:00:01]} g6 {[%emt 0:00:02]} 3. g3 {[%emt 0:00:01]} Bg7 {[%emt 0:00:01]} 4. Bg2 {[%emt 0:00:01]} c6 {[%emt 0:00:01]} 5. e4 {[%emt 0:00:10]} d6 {[%emt 0:00:01]} 6. Nge2 {[%emt 0:00:02]} O-O {[%emt 0:00:02]} 7. O-O {[%emt 0:00:02]} Qc7 {[%emt 0:00:01]} 8. d4 {[%emt 0:00:03]} Nbd7 {[%emt 0:03:08]} 9. h3 {[%emt 0:00:03]} e5 {[%emt 0:00:00]} 10. Be3 {[%emt 0:00:02]} a6 {[%emt 0:00:00]} 11. Kh2 {[%emt 0:00:03]} Re8 {[%emt 0:00:00]} 12. Qd2 {[%emt 0:00:02]} Nf8 {[%emt 0:00:00]} 13. a4 {[%emt 0:00:24]} Be6 {[%emt 0:00:00]} 14. b3 {[%emt 0:00:03]} Bd7 {[%emt 0:00:00]} 15. a5 {[%emt 0:00:03]} Ne6 {[%emt 0:00:00]} 16. dxe5 {[%emt 0:00:26]} dxe5 {[%emt 0:00:00]} 17. Bb6 {[%emt 0:00:01]} Qb8 {[%emt 0:00:00]} 18. Rad1 {[%emt 0:00:19]} Bf8 {[%emt 0:00:00]} 19. Na4 {[%emt 0:00:09]} c5 {[%emt 0:00:00]} 20. Nac3 {[%emt 0:00:19]} Nd4 {[%emt 0:00:00]} 21. Nxd4 {[%emt 0:00:05]} exd4 {[%emt 0:00:00]} 22. Nd5 {[%emt 0:00:10]} Nxd5 {[%emt 0:00:00]} 23. cxd5 {[%emt 0:00:01]} Qd6 {[%emt 0:00:00]} 24. f4 {[%emt 0:00:09]} f6 {[%emt 0:00:00]} 25. Rfe1 {[%emt 0:00:22]} Rac8 {[%emt 0:00:00]} 26. Rc1 {[%emt 0:00:16]} Bb5 {[%emt 0:00:00]} 27. Qf2 {[%emt 0:00:19]} Qd7 {[%emt 0:00:00]} 28. Rc2 {[%emt 0:00:04]} d3 {[%emt 0:00:00]} 29. Rd2 {[%emt 0:00:04]} c4 {[%emt 0:00:00]} 30. bxc4 {[%emt 0:00:02]} Bxc4 {[%emt 0:00:00]} 31. Rb1 {[%emt 0:00:05]} Bb5 {[%emt 0:00:00]} 32. Bd4 {[%emt 0:00:02]} Rc2 {[%emt 0:00:00]} 33. Bxf6 {[%emt 0:00:02]} Rec8 {[%emt 0:00:00]} 34. Rbd1 {[%emt 0:00:02]} Bb4 {[%emt 0:00:00]} 35. Rxc2 {[%emt 0:00:05]} Rxc2 {[%emt 0:00:00]} 36. Qd4 {[%emt 0:00:02]} Bc3 {[%emt 0:00:00]} 37. Qxc3 {[%emt 0:00:03]} Rxc3 {[%emt 0:00:00]} 38. Bxc3 {[%emt 0:00:00]} Qc7 {[%emt 0:00:00]} 39. Bd4 {[%emt 0:00:07]} Qc2 {[%emt 0:00:00]} 40. Rg1 {[%emt 0:00:04]} d2 {[%emt 0:00:00]} 41. Bf3 {[%emt 0:00:02]} Bd3 {[%emt 0:00:00]} 42. Bd1 {[%emt 0:00:02]} Qc4 {[%emt 0:00:00]} 43. Be5 {[%emt 0:00:02]} Qxe4 {[%emt 0:00:00]} 44. Rg2 {[%emt 0:00:01]} Bf1 {[%emt 0:00:00]} 45. Rxd2 {[%emt 0:00:01]} Kf7 {[%emt 0:00:00]} 46. d6 {[%emt 0:00:01]} Bb5 {[%emt 0:00:00]} 47. Bb3+ {[%emt 0:00:01]} Ke8 {[%emt 0:00:00]} 48. Bd5 {[%emt 0:00:01]} Qe1 {[%emt 0:00:00]} 49. Bc3 {[%emt 0:00:02]} Qc1 {[%emt 0:00:02]} 50. Bb4 {[%emt 0:00:01]} Kd7 {[%emt 0:00:02]} 51. Bf3 {[%emt 0:00:01]} Qf1 {[%emt 0:00:04]} 52. Bg4+ {[%emt 0:00:01]} Kd8 {[%emt 0:00:02]} 53. Rc2 {[%emt 0:00:04]} Bd7 {[%emt 0:00:03]} 54. Bxd7 {[%emt 0:00:01]} Kxd7 {[%emt 0:00:00]} 55. Rc7+ {[%emt 0:00:01]} Kd8 {[%emt 0:00:02]} 56. Rc2 {[%emt 0:00:02]} Qd1 {[%emt 0:00:02]} 57. Rf2 {[%emt 0:00:05]} Kd7 {[%emt 0:00:01]} 58. Rg2 {[%emt 0:00:02]} Qd4 {[%emt 0:00:06]} 59. Ba3 {[%emt 0:00:01]} Qa4 {[%emt 0:00:02]} 60. Bb2 {[%emt 0:00:07]} Qxa5 {[%emt 0:00:02]} 61. Be5 {[%emt 0:00:02]} Qd5 {[%emt 0:00:02]} 62. h4 {[%emt 0:00:02]} b5 {[%emt 0:00:01]} 63. Rc2 {[%emt 0:00:01]} b4 {[%emt 0:00:10]} 64. Rc7+ {[%emt 0:00:01]} Kd8 {[%emt 0:00:03]} 65. Bf6+ {[%emt 0:00:01]} Ke8 {[%emt 0:00:01]} 66. d7+ {[%emt 0:00:01]} Qxd7 {[%emt 0:00:01]} 67. Rxd7 {[%emt 0:00:01]} Kxd7 {[%emt 0:00:01]} 68. Kg2 {[%emt 0:00:01]} Kc6 {[%emt 0:00:02]} 69. Kf2 Kd5 70. Ke2 Kc4 71. Kd2 {[%emt 0:00:02]} b3 {[%emt 0:00:03]} 72. g4 {[%emt 0:00:04]} a5 {[%emt 0:00:01]} 73. Kc1 {[%emt 0:00:02]} a4 {[%emt 0:00:02]} 74. Kb2 {[%emt 0:00:00]} Kb4 {[%emt 0:00:01]} 75. Be7+ {[%emt 0:00:02]} Kc4 {[%emt 0:00:00]} 76. f5 {[%emt 0:00:01]} gxf5 {[%emt 0:00:02]} 77. gxf5 {[%emt 0:00:02]} h5 {[%emt 0:00:07]} 78. f6 {[%emt 0:00:01]} Kd5 {[%emt 0:00:02]} 79. f7 {[%emt 0:00:01]} Ke6 {[%emt 0:00:01]} 80. f8=Q {[%emt 0:00:01]} Kd7 {[%emt 0:00:00]} 81. Qd8+ {[%emt 0:00:02]} Ke6 {[%emt 0:00:01]} 82. Qd6+ {[%emt 0:00:01]} 1-0